bitfinex/quotes_BTCUSD_20230403
["timestamp","ask_amount","ask_price","bid_price","bid_amount"]
[1680548504110,0.00018,28235.0,28227.0,0.66554897]
[1680548504348,0.14207681,28235.0,28228.0,0.017712]
[1680548504616,0.14207681,28235.0,28229.0,0.049202]
[1680548504856,0.00018,28235.0,28229.0,0.017712]
[1680548505087,0.00868,28236.0,28229.0,0.017712]
[1680548505334,0.51945337,28236.0,28227.0,0.017713]
[1680548505591,0.14189681,28235.0,28227.0,0.01]
[1680548505823,0.017167,28234.0,28226.0,0.393013]
[1680548506052,0.14189681,28233.0,28226.0,0.74772356]
[1680548506278,0.14189681,28233.0,28227.0,0.049937]
[1680548506564,0.8388723,28232.0,28225.0,0.1303726]
[1680548506793,0.14189681,28231.0,28226.0,0.035876]
[1680548507029,0.14207681,28231.0,28226.0,0.035876]
[1680548507507,0.00018,28231.0,28226.0,0.035876]
[1680548507736,0.00018,28231.0,28226.0,0.017714]
[1680548507966,0.00018,28231.0,28227.0,0.035508]
[1680548508668,0.00018,28231.0,28225.0,0.052472]
[1680548508901,0.14207681,28231.0,28226.0,1.30933759]
[1680548509133,0.14207681,28231.0,28227.0,1.30853959]
[1680548509134,0.00318,28231.0,28227.0,1.30853959]
[1680548509358,0.00018,28231.0,28228.0,0.034586]
[1680548509597,0.00318,28231.0,28226.0,0.034535]
[1680548509829,0.00018,28231.0,28225.0,0.05437]
[1680548510023,0.14507681,28231.0,28226.0,1.31126552]
[1680548510342,0.00018,28231.0,28227.0,1.30877552]
[1680548510566,0.00018,28231.0,28225.0,0.017714]
[1680548510567,0.00018,28231.0,28228.0,0.033351]
[1680548510801,0.00018,28231.0,28226.0,0.034246]
[1680548511041,0.00018,28231.0,28227.0,1.2752219]
[1680548511279,0.00318,28231.0,28228.0,0.035421]
[1680548511509,0.00018,28231.0,28228.0,0.035421]
[1680548511750,0.00318,28231.0,28226.0,0.053675]
[1680548512013,0.14207681,28231.0,28227.0,1.30983075]
[1680548512245,0.00218,28231.0,28228.0,1.31146675]
[1680548512513,0.00018,28231.0,28229.0,0.034876]
[1680548512767,0.00318,28231.0,28226.0,0.036345]
[1680548513031,0.14183681,28232.0,28227.0,1.27522736]
[1680548513278,0.002,28231.0,28228.0,1.40899987]
[1680548513518,0.002,28231.0,28229.0,1.31022636]
[1680548513742,0.002,28231.0,28230.0,1.37788578]
[1680548513978,0.002,28231.0,28230.0,2.67073372]
[1680548514204,0.16359492,28235.0,28230.0,2.67073372]
[1680548514205,0.16359492,28235.0,28230.0,2.67090739]
[1680548514423,0.003,28231.0,28230.0,1.48538359]
[1680548514658,0.16359492,28235.0,28230.0,2.65436464]
[1680548514887,0.16299003,28235.0,28231.0,2.31846954]
[1680548515181,0.014346,28237.0,28232.0,0.036348]
[1680548515538,0.16261367,28236.0,28233.0,0.14189681]
[1680548515540,0.16261367,28236.0,28232.0,0.15960581]
[1680548515777,0.16261367,28236.0,28231.0,0.01789]
[1680548515978,0.16261367,28236.0,28232.0,1.2750962]
[1680548516213,0.16261367,28236.0,28232.0,0.00018]
[1680548516480,0.16261367,28236.0,28230.0,1.27527804]
[1680548516679,0.30403062,28236.0,28231.0,0.036245]
[1680548516879,0.16219381,28236.0,28232.0,1.27509804]
[1680548517096,0.16219381,28236.0,28232.0,0.00018]
[1680548517302,0.16219381,28236.0,28230.0,1.27510303]
[1680548517488,0.005,28236.0,28231.0,1.41699984]
[1680548517850,0.005,28236.0,28232.0,1.30963203]
[1680548517851,0.00470847,28236.0,28232.0,1.30963203]
[1680548518127,0.00470847,28236.0,28233.0,1.31219703]
[1680548518342,0.014164,28239.0,28234.0,1.30948603]
[1680548518590,0.16194294,28238.0,28235.0,1.31194903]
[1680548518826,0.003,28236.0,28234.0,0.14207681]
[1680548519068,0.003,28236.0,28235.0,1.3097294]
[1680548519313,0.16206837,28236.0,28235.0,1.3097294]
[1680548519540,0.16206837,28236.0,28235.0,0.00018]
[1680548519765,0.328509,28240.0,28230.0,1.27494368]
[1680548519992,0.014165,28238.0,28231.0,1.41684049]
[1680548520215,0.003,28236.0,28232.0,1.31248668]
[1680548520456,0.1563445,28237.0,28233.0,1.31151168]
[1680548520684,0.14383681,28236.0,28235.0,0.004]
[1680548520910,0.17238505,28236.0,28235.0,0.038841]
[1680548521138,0.17238505,28236.0,28231.0,0.00018]
[1680548521139,0.17038505,28236.0,28231.0,0.00018]
[1680548521362,0.17038505,28236.0,28232.0,0.004]
[1680548521363,0.14183681,28235.0,28232.0,0.004]
[1680548521660,0.1696952,28234.0,28230.0,0.00012]
[1680548521901,0.49183681,28233.0,28228.0,1.27525646]
[1680548522145,0.2977414,28232.0,28228.0,1.27525646]
[1680548522374,0.042505,28231.0,28229.0,1.27507646]
[1680548522603,0.042505,28231.0,28229.0,0.00018]
[1680548522604,0.15596732,28230.0,28229.0,0.00018]
[1680548522876,0.15596732,28230.0,28221.0,2.72767224]
[1680548522877,0.71934613,28230.0,28225.0,0.00018]
[1680548523110,0.14183681,28229.0,28224.0,1.27540226]
[1680548523342,0.19891756,28228.0,28225.0,1.27522226]
[1680548523567,0.0085,28227.0,28226.0,1.27522226]
[1680548523807,0.0085,28227.0,28226.0,1.27540226]
[1680548523808,0.17907656,28227.0,28226.0,1.27540226]
[1680548524277,0.55437656,28227.0,28226.0,1.27540226]
[1680548524748,0.94372632,28227.0,28226.0,0.00406]
[1680548524990,1.14254982,28227.0,28226.0,0.004]
[1680548525236,1.14254982,28227.0,28219.0,0.00018]
[1680548525237,0.3753,28224.0,28219.0,0.00018]
[1680548525484,0.3753,28220.0,28219.0,0.00018]
[1680548525759,0.213,28217.0,28209.0,1.91333096]
[1680548526015,0.213,28217.0,28209.0,6e-05]
[1680548526016,0.15810179,28211.0,28209.0,6e-05]
[1680548526266,0.17722,28212.0,28206.0,0.04418]
[1680548526267,0.7984686,28210.0,28206.0,0.04418]
[1680548526520,0.53403006,28207.0,28206.0,0.044]
[1680548526768,0.74207587,28207.0,28206.0,0.044]
[1680548527027,0.88037806,28207.0,28206.0,0.044]
[1680548527274,0.19089806,28207.0,28206.0,0.044]
[1680548527775,0.21789806,28207.0,28206.0,0.044]
[1680548528011,0.16723006,28207.0,28206.0,0.044]
[1680548528242,0.17351006,28207.0,28206.0,0.044]
[1680548528481,0.16483006,28207.0,28206.0,0.044]
[1680548528721,0.18751006,28207.0,28206.0,0.044]
[1680548528948,0.21093506,28207.0,28206.0,0.044]
[1680548529357,0.19675506,28207.0,28206.0,0.044]
[1680548529839,0.19675506,28207.0,28206.0,0.039]
[1680548530322,0.14633006,28207.0,28206.0,0.039]
[1680548530546,0.14283006,28207.0,28206.0,0.039]
[1680548530775,0.13783006,28207.0,28206.0,0.039]
[1680548531014,0.14983006,28207.0,28206.0,0.039]
[1680548531263,0.23793707,28207.0,28206.0,0.039]
[1680548531513,0.42611707,28207.0,28206.0,0.039]
[1680548531782,0.75583446,28207.0,28206.0,0.039]
[1680548532251,0.93583446,28207.0,28206.0,0.039]
[1680548532730,0.92205145,28207.0,28206.0,0.039]
[1680548532959,0.72205145,28207.0,28206.0,0.039]
[1680548533212,0.92205145,28207.0,28206.0,0.039]
[1680548533682,0.74905145,28207.0,28206.0,0.039]
[1680548533906,1.12435145,28207.0,28206.0,0.039]
[1680548534129,1.2234586,28207.0,28206.0,0.039]
[1680548534363,1.4277186,28207.0,28206.0,0.039]
[1680548534833,1.56955541,28207.0,28206.0,0.039]
[1680548535075,1.4007186,28207.0,28206.0,0.039]
[1680548535311,1.5978786,28207.0,28206.0,0.039]
[1680548535550,1.9478786,28207.0,28206.0,0.039]
[1680548535785,1.9478786,28207.0,28206.0,0.0209]
[1680548536985,1.9208786,28207.0,28206.0,0.0209]
[1680548537215,1.9478786,28207.0,28206.0,0.0209]
[1680548537674,2.1608786,28207.0,28206.0,0.0209]
[1680548537901,2.1338786,28207.0,28206.0,0.0209]
[1680548538125,2.1608786,28207.0,28206.0,0.0209]
[1680548538360,2.1608786,28207.0,28192.0,0.35]
[1680548538361,0.3753,28204.0,28197.0,0.00018]
[1680548538593,0.6133549,28202.0,28192.0,0.00018]
[1680548538823,0.3753,28200.0,28192.0,0.00018]
[1680548539080,0.042556,28198.0,28192.0,0.00018]
[1680548539324,0.3753,28196.0,28192.0,0.00018]
[1680548539572,0.16474381,28197.0,28192.0,0.00018]
[1680548539573,1.12925123,28195.0,28192.0,0.00018]
[1680548540174,0.023213,28194.0,28189.0,0.02118]
[1680548540176,0.323213,28194.0,28189.0,0.021]
[1680548540443,0.58089695,28193.0,28189.0,0.021]
[1680548540696,0.331117,28192.0,28189.0,0.021]
[1680548541128,0.16395578,28191.0,28189.0,0.021]
[1680548541420,0.036651,28190.0,28189.0,0.021]
[1680548541689,0.17111861,28190.0,28189.0,0.021]
[1680548541984,0.14865661,28190.0,28189.0,0.02118]
[1680548542567,0.14015661,28190.0,28189.0,0.02118]
[1680548543047,0.14865661,28190.0,28189.0,0.02118]
[1680548543315,0.16284561,28190.0,28189.0,0.02118]
[1680548543613,0.14865661,28190.0,28189.0,0.02118]
[1680548543822,0.16665661,28190.0,28189.0,0.02118]
[1680548544287,0.15815661,28190.0,28189.0,0.02118]
[1680548544515,0.018,28190.0,28189.0,0.02118]
[1680548544968,0.018,28190.0,28189.0,0.057467]
[1680548545194,0.018,28190.0,28189.0,0.02118]
[1680548545423,0.018,28190.0,28189.0,0.05604]
[1680548546123,0.018,28190.0,28189.0,0.02118]
[1680548546822,0.018,28190.0,28189.0,0.056876]
[1680548547057,0.018,28190.0,28189.0,0.02118]
[1680548549711,0.018,28190.0,28189.0,0.075032]
[1680548550384,0.018,28190.0,28189.0,0.057295]
[1680548550609,4.21447965,28196.0,28189.0,0.057295]
[1680548550839,0.002,28190.0,28186.0,0.08109857]
[1680548551082,0.00018,28194.0,28185.0,0.34702105]
[1680548551365,0.001,28190.0,28189.0,0.001]
[1680548551597,0.015309,28190.0,28181.0,0.05214605]
[1680548551849,0.14183681,28189.0,28181.0,0.37245256]
[1680548552107,0.14183681,28189.0,28182.0,0.36707556]
[1680548552108,0.86832834,28188.0,28182.0,0.36707556]
[1680548552336,0.00018,28188.0,28185.0,0.5]
[1680548552561,0.00018,28190.0,28188.0,0.55833059]
[1680548552810,0.00018,28197.0,28189.0,0.065211]
[1680548553033,0.35471056,28196.0,28190.0,0.011961]
[1680548553257,0.35489056,28197.0,28190.0,0.029697]
[1680548553481,0.35471056,28197.0,28191.0,0.012049]
[1680548554645,0.51079237,28197.0,28191.0,0.012049]
[1680548554877,0.54628143,28197.0,28190.0,0.01148]
[1680548555110,0.20018,28198.0,28192.0,0.124146]
[1680548555382,0.00018,28198.0,28193.0,0.012121]
[1680548555616,0.2,28201.0,28194.0,0.017733]
[1680548555617,0.00018,28200.0,28194.0,0.017733]
[1680548555845,0.35489056,28200.0,28195.0,0.012328]
[1680548556304,0.002,28197.0,28195.0,0.012328]
[1680548556545,0.002,28197.0,28195.0,0.030061]
[1680548556790,0.002,28197.0,28196.0,0.012106]
[1680548557019,0.00318,28200.0,28193.0,0.035469]
[1680548557020,0.00018,28200.0,28195.0,0.012112]
[1680548557250,0.00018,28200.0,28194.0,0.012337]
[1680548557251,0.023198,28200.0,28194.0,0.012337]
[1680548557479,0.2,28198.0,28194.0,0.03007]
[1680548557716,0.14489681,28197.0,28195.0,0.012111]
[1680548557953,0.00018,28197.0,28192.0,0.029844]
[1680548558178,0.14189681,28197.0,28193.0,0.011686]
[1680548558419,0.00018,28199.0,28193.0,0.02942]
[1680548558651,0.35789056,28200.0,28194.0,0.011867]
[1680548559154,0.35489056,28200.0,28194.0,0.011867]
[1680548559422,0.00018,28200.0,28194.0,0.38431156]
[1680548559698,0.003,28197.0,28195.0,0.012582]
[1680548559961,0.003,28197.0,28196.0,0.017732]
[1680548560226,0.00018,28204.0,28196.0,0.029541]
[1680548560511,0.003,28200.0,28197.0,0.011979]
[1680548560788,0.00018,28203.0,28197.0,0.011979]
[1680548561574,0.00018,28203.0,28193.0,0.437987]
[1680548561575,0.49660737,28202.0,28193.0,0.33158]
[1680548562067,0.49660737,28202.0,28191.0,0.7367]
[1680548562068,0.2,28199.0,28191.0,0.38688]
[1680548562338,0.13689681,28198.0,28192.0,0.012487]
[1680548562591,0.13689681,28198.0,28192.0,0.012667]
[1680548563593,0.13689681,28198.0,28192.0,0.030402]
[1680548563823,0.13689681,28198.0,28193.0,0.011964]
[1680548564050,0.2,28199.0,28193.0,0.011964]
[1680548564739,0.002,28198.0,28193.0,0.011964]
[1680548565693,0.00191588,28198.0,28193.0,0.011964]
[1680548565916,0.34189681,28199.0,28193.0,0.011964]
[1680548566159,0.34189681,28199.0,28192.0,0.00018]
[1680548566160,0.002,28198.0,28192.0,0.00018]
[1680548566391,0.14189681,28198.0,28192.0,0.012554]
[1680548566619,0.14289681,28198.0,28192.0,0.030289]
[1680548566850,0.14289681,28198.0,28193.0,0.01174]
[1680548567072,0.001,28198.0,28193.0,0.01174]
[1680548567542,0.2,28199.0,28193.0,0.01174]
[1680548567768,0.202,28199.0,28193.0,0.01174]
[1680548568024,0.2,28199.0,28193.0,0.029474]
[1680548568499,0.2,28199.0,28194.0,0.011607]
[1680548568500,0.002,28198.0,28194.0,0.011607]
[1680548568504,0.2,28199.0,28194.0,0.011607]
[1680548568738,0.202,28199.0,28194.0,0.011607]
[1680548569393,0.202,28199.0,28194.0,0.029341]
[1680548569626,0.202,28199.0,28195.0,0.01159]
[1680548569859,0.2,28199.0,28195.0,0.01159]
[1680548570308,0.2,28199.0,28194.0,0.011627]
[1680548570763,0.202,28199.0,28194.0,0.029361]
[1680548571002,0.202,28199.0,28194.0,0.2269705]
[1680548571255,0.202,28199.0,28195.0,0.0952696]
[1680548571488,0.202,28199.0,28196.0,0.012618]
[1680548571724,0.202,28199.0,28196.0,0.030351]
[1680548571967,0.202,28199.0,28197.0,0.011828]
[1680548572250,0.2,28199.0,28197.0,0.011828]
[1680548572496,0.201,28199.0,28196.0,0.011628]
[1680548572746,0.2,28199.0,28196.0,0.011628]
[1680548573451,0.2,28199.0,28196.0,0.0953226]
[1680548573694,0.2,28199.0,28197.0,0.012065]
[1680548573961,0.00018,28200.0,28197.0,0.012065]
[1680548574200,0.2,28200.0,28197.0,0.012065]
[1680548574681,0.19915559,28200.0,28197.0,0.012065]
[1680548575167,0.005,28199.0,28197.0,0.0957596]
[1680548575421,0.35489056,28202.0,28198.0,0.012145]
[1680548575422,0.19915559,28201.0,28198.0,0.012145]
[1680548575665,0.005,28200.0,28198.0,0.012145]
[1680548575899,0.55386615,28201.0,28198.0,0.012145]
[1680548576141,0.005,28199.0,28198.0,0.012145]
[1680548576388,0.55386615,28201.0,28198.0,0.012145]
[1680548576632,0.55386615,28201.0,28197.0,0.0953386]
[1680548576860,0.55386615,28201.0,28198.0,0.011399]
[1680548577350,0.55386615,28201.0,28198.0,0.0950936]
[1680548577584,0.012,28200.0,28199.0,0.01185]
[1680548577812,0.56586615,28201.0,28199.0,0.01185]
[1680548578268,0.56586615,28201.0,28198.0,0.012382]
[1680548578750,0.56586615,28201.0,28199.0,1.93133344]
[1680548579004,0.56586615,28201.0,28200.0,0.011978]
[1680548579238,0.55386615,28201.0,28200.0,0.012158]
[1680548579985,0.57286615,28201.0,28200.0,0.012158]
[1680548580216,0.65180376,28201.0,28200.0,0.00018]
[1680548580444,0.57286615,28201.0,28200.0,0.00018]
[1680548580675,0.58136615,28201.0,28200.0,0.00018]
[1680548580900,0.56236615,28201.0,28200.0,0.00018]
[1680548581129,0.58736615,28201.0,28200.0,0.00018]
[1680548581602,1.16486876,28201.0,28200.0,0.00018]
[1680548581837,1.21289676,28201.0,28199.0,1.93133344]
[1680548582087,1.13574856,28200.0,28199.0,1.93133344]
[1680548582321,1.15011256,28200.0,28199.0,1.93133344]
[1680548582560,0.80011256,28200.0,28199.0,1.93133344]
[1680548583526,0.36339056,28200.0,28199.0,1.93133344]
[1680548583768,0.35489056,28200.0,28199.0,1.93133344]
[1680548584012,0.28282908,28200.0,28199.0,1.93151344]
[1680548584273,0.028366,28203.0,28199.0,0.00018]
[1680548584516,0.019,28200.0,28196.0,0.00018]
[1680548584756,0.3943,28203.0,28197.0,1.88174162]
[1680548584988,0.014183,28202.0,28199.0,0.002]
[1680548585224,0.00018,28204.0,28197.0,1.88192162]
[1680548585451,0.014183,28202.0,28197.0,1.88174162]
[1680548585693,0.51719681,28204.0,28197.0,1.88192162]
[1680548585927,0.014183,28202.0,28198.0,0.2]
[1680548586159,0.014183,28203.0,28199.0,1.88160816]
[1680548586404,0.014183,28203.0,28199.0,1.88178816]
[1680548587341,0.014183,28203.0,28199.0,1.88278816]
[1680548588091,0.014183,28203.0,28199.0,1.88178816]
[1680548588338,0.428999,28202.0,28200.0,1.47125327]
[1680548588565,0.46267,28201.0,28200.0,0.00018]
[1680548588825,0.56115867,28201.0,28199.0,0.006]
[1680548589080,0.05688,28200.0,28197.0,0.00018]
[1680548589303,0.05884,28199.0,28196.0,0.20018]
[1680548589533,0.014184,28199.0,28196.0,0.20018]
[1680548590607,0.06581797,28199.0,28196.0,0.20018]
[1680548591675,0.022684,28200.0,28196.0,0.20018]
[1680548591943,0.045943,28199.0,28196.0,0.20018]
[1680548592210,0.014185,28199.0,28196.0,0.20018]
[1680548592469,0.022684,28200.0,28196.0,0.20018]
[1680548592826,0.013964,28200.0,28196.0,0.20018]
[1680548593627,0.013964,28200.0,28196.0,0.20618]
[1680548593887,0.013964,28200.0,28196.0,0.20018]
[1680548593888,0.22980521,28200.0,28196.0,0.20018]
[1680548594374,0.420555,28199.0,28196.0,0.20618]
[1680548594585,0.048361,28198.0,28196.0,0.20618]
[1680548594838,0.048361,28198.0,28194.0,6e-05]
[1680548594839,0.563,28196.0,28194.0,6e-05]
[1680548595072,0.563,28196.0,28192.0,0.00012]
[1680548595073,0.67375533,28195.0,28192.0,0.00012]
[1680548595316,0.67375533,28195.0,28189.0,0.028373]
[1680548595317,0.044871,28194.0,28189.0,0.028373]
[1680548595553,0.051064,28193.0,28189.0,0.028373]
[1680548595797,0.56417481,28192.0,28189.0,0.028373]
[1680548596052,0.3753,28190.0,28189.0,0.028373]
[1680548596284,0.471143,28190.0,28189.0,0.028373]
[1680548597181,0.471143,28190.0,28189.0,0.030373]
[1680548597418,0.471143,28190.0,28189.0,0.028373]
[1680548597647,0.473143,28190.0,28189.0,0.030373]
[1680548598100,0.53230489,28190.0,28189.0,0.030373]
[1680548598327,0.53030489,28190.0,28189.0,0.028373]
[1680548598548,0.53230489,28190.0,28189.0,0.030373]
[1680548598780,1.04009628,28190.0,28189.0,0.028373]
[1680548599012,1.34209628,28190.0,28189.0,0.030373]
[1680548599283,0.99209628,28190.0,28189.0,0.030373]
[1680548599773,0.85020228,28190.0,28189.0,0.030373]
[1680548600211,0.85020228,28190.0,28189.0,0.028373]
[1680548600212,0.84820228,28190.0,28189.0,0.028373]
[1680548600656,0.85020228,28190.0,28189.0,0.030373]
[1680548600893,0.84820228,28190.0,28189.0,0.028373]
[1680548601113,0.85020228,28190.0,28189.0,1.1009485]
[1680548601336,0.84820228,28190.0,28189.0,1.0989485]
[1680548601571,0.85020228,28190.0,28189.0,1.1009485]
[1680548602053,0.84820228,28190.0,28189.0,1.0989485]
[1680548602288,0.84820228,28190.0,28189.0,1.1009485]
[1680548602289,0.85020228,28190.0,28189.0,1.1009485]
[1680548602515,0.78904039,28190.0,28189.0,1.0989485]
[1680548602755,0.79104039,28190.0,28189.0,1.1009485]
[1680548603476,0.78904039,28190.0,28189.0,1.0705755]
[1680548603714,0.79104039,28190.0,28189.0,1.0725755]
[1680548603945,0.98718164,28190.0,28189.0,1.0705755]
[1680548604180,0.98918164,28190.0,28189.0,1.0725755]
[1680548604443,0.98718164,28190.0,28189.0,1.0705755]
[1680548604908,0.98918164,28190.0,28189.0,1.0725755]
[1680548605148,0.98918164,28190.0,28189.0,0.002]
[1680548605846,1.26600641,28190.0,28189.0,0.002]
[1680548606088,0.97146425,28190.0,28189.0,0.002]
[1680548606322,0.773323,28190.0,28189.0,0.002]
[1680548606563,0.436445,28190.0,28189.0,0.002]
[1680548606788,0.016369,28190.0,28189.0,0.002]
[1680548607065,0.060899,28190.0,28189.0,0.002]
[1680548607310,0.058899,28190.0,28188.0,0.55833059]
[1680548607535,0.05504943,28190.0,28189.0,0.002]
[1680548607778,0.060125,28190.0,28188.0,0.55833059]
[1680548607999,0.016189,28190.0,28189.0,0.002]
[1680548608235,0.070564,28190.0,28188.0,0.55833059]
[1680548608482,0.057834,28189.0,28188.0,0.55833059]
[1680548608718,0.072023,28189.0,28188.0,0.55833059]
[1680548608955,0.072023,28189.0,28188.0,0.56033059]
[1680548609184,0.072023,28189.0,28188.0,0.76033059]
[1680548609938,0.072023,28189.0,28188.0,0.75833059]
[1680548610172,0.051334,28189.0,28188.0,0.76033059]
[1680548610403,0.002,28189.0,28188.0,0.76033059]
[1680548610864,0.046306,28189.0,28188.0,0.75833059]
[1680548611095,0.062495,28189.0,28188.0,0.75933059]
[1680548611783,0.060495,28189.0,28188.0,0.75833059]
[1680548613380,0.062495,28189.0,28188.0,0.76033059]
[1680548613872,0.0724504,28189.0,28188.0,0.76033059]
[1680548614145,0.062495,28189.0,28188.0,0.76033059]
[1680548615102,0.068995,28189.0,28188.0,0.75833059]
[1680548615337,0.070995,28189.0,28188.0,0.76033059]
[1680548615580,0.446295,28189.0,28188.0,0.76033059]
[1680548615792,0.5196359,28189.0,28188.0,0.76033059]
[1680548616291,0.8696359,28189.0,28188.0,0.76033059]
[1680548616723,0.8696359,28189.0,28188.0,1.45102423]
[1680548617768,0.5196359,28189.0,28188.0,1.45102423]
[1680548619494,0.51948955,28189.0,28188.0,1.45114423]
[1680548619708,0.51936955,28189.0,28188.0,1.45120423]
[1680548621350,0.81936955,28189.0,28188.0,1.45120423]
[1680548621598,0.81954955,28189.0,28188.0,1.45102423]
[1680548621834,0.81954955,28189.0,28188.0,1.44602423]
[1680548622059,0.83526694,28189.0,28188.0,1.44402423]
[1680548622294,0.86026694,28189.0,28188.0,1.44502423]
[1680548622520,0.83526694,28189.0,28188.0,1.44402423]
[1680548622765,0.86226694,28189.0,28188.0,1.44502423]
[1680548622992,0.83526694,28189.0,28188.0,1.44402423]
[1680548623221,0.84708694,28189.0,28188.0,1.44520423]
[1680548623447,0.82008694,28189.0,28188.0,1.44420423]
[1680548623684,0.82008694,28189.0,28188.0,1.24420423]
[1680548623962,0.84708694,28189.0,28188.0,1.24520423]
[1680548624426,0.82008694,28189.0,28188.0,0.55351059]
[1680548624686,0.82026694,28189.0,28188.0,0.55324175]
[1680548625476,0.84726694,28189.0,28188.0,0.55424175]
[1680548625740,0.82026694,28189.0,28188.0,0.55424175]
[1680548626009,0.82954955,28189.0,28188.0,0.55424175]
[1680548626277,0.84726694,28189.0,28188.0,0.55424175]
[1680548626600,0.82026694,28189.0,28188.0,0.55324175]
[1680548626786,0.84726694,28189.0,28188.0,0.55424175]
[1680548627010,0.77410604,28189.0,28188.0,0.55424175]
[1680548627945,0.75638865,28189.0,28188.0,0.55424175]
[1680548629116,0.75638865,28189.0,28188.0,0.3906717]
[1680548629800,0.77410604,28189.0,28188.0,0.3906717]
[1680548630033,0.89503004,28189.0,28188.0,0.3906717]
[1680548633579,1.42503004,28189.0,28188.0,0.3906717]
[1680548634495,1.07503004,28189.0,28188.0,0.3906717]
[1680548634953,0.95410604,28189.0,28188.0,0.3906717]
[1680548640345,0.94515439,28189.0,28188.0,0.3908517]
[1680548642164,0.927437,28189.0,28188.0,0.3908517]
[1680548648289,0.927617,28189.0,28188.0,0.19230847]
[1680548648569,1.0638921,28189.0,28188.0,0.19230847]
[1680548649101,1.0368921,28189.0,28188.0,0.19130847]
[1680548649379,1.0618921,28189.0,28188.0,0.19230847]
[1680548649643,1.0868921,28189.0,28188.0,0.19230847]
[1680548649917,1.0868921,28189.0,28188.0,0.001]
[1680548650205,1.0617121,28189.0,28188.0,0.001]
[1680548654201,1.4117121,28189.0,28188.0,0.001]
[1680548657393,1.0617121,28189.0,28188.0,0.001]
[1680548659254,1.1451121,28189.0,28188.0,0.001]
[1680548664920,1.4951121,28189.0,28188.0,0.001]
[1680548667140,1.6724821,28189.0,28188.0,0.001]
[1680548670889,1.75693355,28189.0,28188.0,0.00093753]
[1680548671139,2.14021355,28189.0,28188.0,0.00093753]
[1680548671377,2.3519969,28189.0,28188.0,0.00093753]
[1680548671602,2.20126401,28189.0,28188.0,0.00093753]
[1680548671827,2.18354662,28189.0,28188.0,0.00093753]
[1680548672778,2.15854662,28189.0,28186.0,0.2]
[1680548673012,0.4593,28187.0,28186.0,0.2]
[1680548673239,0.867314,28187.0,28186.0,0.2]
[1680548673481,0.906358,28187.0,28186.0,0.2]
[1680548673710,1.256358,28187.0,28186.0,0.2]
[1680548673944,1.52941115,28187.0,28186.0,0.2]
[1680548674172,2.22454388,28187.0,28184.0,0.00018]
[1680548674397,0.63611,28185.0,28183.0,0.2]
[1680548674616,0.594341,28184.0,28183.0,0.2]
[1680548674850,0.952841,28184.0,28183.0,0.20018]
[1680548675074,0.952841,28184.0,28183.0,0.2]
[1680548675299,1.4342181,28184.0,28183.0,0.2]
[1680548675572,1.66511549,28184.0,28183.0,0.2]
[1680548675805,2.31945549,28184.0,28182.0,0.021]
[1680548676088,1.7408677,28183.0,28182.0,0.021]
[1680548676355,2.27992834,28183.0,28182.0,0.021]
[1680548676603,2.2984879,28183.0,28182.0,0.021]
[1680548676863,2.09551465,28183.0,28182.0,0.021]
[1680548678132,2.12251465,28183.0,28182.0,0.021]
[1680548678828,2.03851465,28183.0,28182.0,0.021]
[1680548679029,1.66626905,28183.0,28182.0,0.021]
[1680548679600,1.581318,28183.0,28182.0,0.021]
[1680548680147,1.231318,28183.0,28182.0,0.021]
[1680548680426,1.018318,28183.0,28182.0,0.021]
[1680548680677,1.69194716,28183.0,28182.0,0.021]
[1680548681821,1.60794716,28183.0,28182.0,0.021]
[1680548683869,1.78535716,28183.0,28182.0,0.021]
[1680548684333,1.60794716,28183.0,28182.0,0.021]
[1680548685272,1.43760716,28183.0,28182.0,0.021]
[1680548685497,1.60794716,28183.0,28182.0,0.021]
[1680548685961,1.43760716,28183.0,28182.0,0.021]
[1680548686206,1.60794716,28183.0,28182.0,0.021]
[1680548690547,1.80712684,28183.0,28182.0,0.021]
[1680548691136,1.80712684,28183.0,28182.0,0.021]
[1680548693307,1.98454684,28183.0,28182.0,0.02091754]
[1680548693535,1.98436684,28183.0,28182.0,0.02091754]
[1680548695738,2.19736684,28183.0,28182.0,0.02091754]
[1680548697624,1.4753,28177.0,28176.0,0.021]
[1680548697890,1.4753,28177.0,28172.0,0.021]
[1680548697891,0.35,28175.0,28172.0,0.021]
[1680548698367,1.06549881,28174.0,28172.0,0.00191599]
[1680548698369,0.35,28173.0,28171.0,0.21633057]
[1680548698601,0.950378,28172.0,28171.0,0.21633057]
[1680548698830,1.471019,28172.0,28171.0,0.21633057]
[1680548700443,1.46205982,28172.0,28171.0,0.21633057]
[1680548700693,1.79962508,28172.0,28171.0,0.21633057]
[1680548700933,1.31865982,28172.0,28171.0,0.21633057]
[1680548702095,1.54111481,28172.0,28171.0,0.21633057]
[1680548702344,1.37071481,28172.0,28171.0,0.21633057]
[1680548702863,1.51411481,28172.0,28171.0,0.21633057]
[1680548703107,1.83619519,28172.0,28171.0,0.21633057]
[1680548703800,1.86319519,28172.0,28171.0,0.21633057]
[1680548705165,1.83619519,28172.0,28171.0,0.21633057]
[1680548705379,1.86319519,28172.0,28171.0,0.21633057]
[1680548705609,1.83619519,28172.0,28171.0,0.21633057]
[1680548705930,1.86319519,28172.0,28171.0,0.21633057]
[1680548706830,1.83619519,28172.0,28171.0,0.21633057]
[1680548707050,1.86319519,28172.0,28171.0,0.21633057]
[1680548707276,1.83619519,28172.0,28171.0,0.21633057]
[1680548707511,1.86319519,28172.0,28171.0,0.21633057]
[1680548708475,2.08481851,28172.0,28171.0,0.21633057]
[1680548708955,1.86319519,28172.0,28171.0,0.21633057]
[1680548709652,1.83619519,28172.0,28171.0,0.21633057]
[1680548709878,1.86319519,28172.0,28171.0,0.21633057]
[1680548710353,1.15939399,28172.0,28171.0,0.21633057]
[1680548710581,0.98049399,28172.0,28171.0,0.21633057]
[1680548710806,1.15089399,28172.0,28171.0,0.21633057]
[1680548711539,0.98049399,28172.0,28171.0,0.21633057]
[1680548712026,0.111155,28172.0,28171.0,0.64069291]